[Event "FIDE Grand Swiss 2023"]
[Site "Villa Marina, Douglas, Isle of Man"]
[Date "2023.11.03"]
[Round "9.29"]
[White "Warmerdam, Max"]
[Black "Tabatabaei, M. Amin"]
[Result "0-1"]
[WhiteElo "2636"]
[BlackElo "2685"]
[EventDate "2023.10.25"]
[ECO "A14"]
[PlyCount "84"]
[BlackClock "00:03:45"]
[BlackFideId "12521213"]
[TimeControl "40/100 + 20/50 + 15 + 30s/move"]
[WhiteClock "00:08:32"]
[WhiteFideId "1048104"]

1.c4 {[%emt 00:00:32]} 1...e6 {[%clk 01:40:15][%emt 00:00:18]} 2.g3 {[%clk
01:41:15][%emt 00:00:08]} 2...d5 {[%clk 01:40:02][%emt 00:00:43]} 3.Bg2 {[%clk
01:41:35][%emt 00:00:10]} 3...Nf6 {[%clk 01:40:23][%emt 00:00:10]} 4.Nf3 {[%clk
01:41:55][%emt 00:00:09]} 4...Be7 {[%clk 01:40:41][%emt 00:00:13]} 5.O-O {[%clk
01:42:15][%emt 00:00:09]} 5...O-O {[%clk 01:41:03][%emt 00:00:07]} 6.b3 {[%clk
01:42:16][%emt 00:00:30]} 6...d4 {[%clk 01:39:23][%emt 00:02:10]} 7.e3 {[%clk
01:42:11][%emt 00:00:35]} 7...c5 {[%clk 01:39:42][%emt 00:00:12]} 8.Ne5 {[%clk
01:42:32][%emt 00:00:08]} 8...Qc7 {[%clk 01:38:58][%emt 00:01:15]} 9.exd4 
{[%clk 01:42:55][%emt 00:00:07]} 9...cxd4 {[%clk 01:39:00][%emt 00:00:28]} 
10.Qe2 {[%clk 01:43:13][%emt 00:00:11]} 10...Nfd7 {[%clk 01:34:53][%emt
00:04:38]} 11.Re1 {[%clk 01:43:03][%emt 00:00:39]} 11...Nc5 {[%clk
01:14:25][%emt 00:20:58]} 12.Na3 {[%clk 01:33:31][%emt 00:10:02]} 12...f6 
{[%clk 01:01:54][%emt 00:13:02]} 13.Nd3 {[%clk 01:19:57][%emt 00:14:03]} 
13...Nxd3 {[%clk 00:58:32][%emt 00:03:53]} 14.Qxd3 {[%clk 01:20:03][%emt
00:00:23]} 14...Nc6 {[%clk 00:58:54][%emt 00:00:08]} 15.Nb5 {[%clk
00:53:55][%emt 00:26:38]} 15...Qb6 {[%clk 00:55:07][%emt 00:04:16]} 16.a4 
{[%clk 00:41:06][%emt 00:13:20]} 16...a6 {[%clk 00:53:13][%emt 00:02:24]} 17.a5 
{[%clk 00:38:30][%emt 00:03:07]} 17...Qd8 {[%clk 00:48:54][%emt 00:04:49]} 
18.Na3 {[%clk 00:37:27][%emt 00:01:32]} 18...Qxa5 {[%clk 00:47:35][%emt
00:01:50]} 19.Nc2 {[%clk 00:36:13][%emt 00:01:44]} 19...Qb6 {[%clk
00:44:44][%emt 00:03:21]} 20.Ba3 {[%clk 00:35:57][%emt 00:00:46]} 20...Bxa3 
{[%clk 00:42:23][%emt 00:02:51]} 21.Rxa3 {[%clk 00:36:08][%emt 00:00:19]} 
21...e5 {[%clk 00:41:11][%emt 00:01:42]} 22.b4 {[%clk 00:20:58][%emt 00:15:39]} 
22...Be6 {[%clk 00:40:46][%emt 00:00:55]} 23.Rb1 {[%clk 00:20:35][%emt
00:00:53]} 23...Rfc8 {[%clk 00:36:54][%emt 00:04:23]} 24.Be4 {[%clk
00:19:47][%emt 00:01:17]} 24...h6 {[%clk 00:34:30][%emt 00:02:55]} 25.b5 {[%clk
00:13:12][%emt 00:07:05]} 25...Na5 {[%clk 00:25:37][%emt 00:09:23]} 26.Nxd4 
{[%clk 00:07:51][%emt 00:05:50]} 26...Bxc4 {[%clk 00:16:47][%emt 00:09:21]} 
27.Qf3 {[%clk 00:07:52][%emt 00:00:29]} 27...Qxd4 {[%clk 00:09:24][%emt
00:07:53]} 28.Rxa5 {[%clk 00:08:14][%emt 00:00:08]} 28...axb5 {[%clk
00:09:48][%emt 00:00:05]} 29.Rxa8 {[%clk 00:07:36][%emt 00:01:08]} 29...Rxa8 
{[%clk 00:10:17][%emt 00:00:01]} 30.d3 {[%clk 00:05:11][%emt 00:02:55]} 
30...Be6 {[%clk 00:10:37][%emt 00:00:11]} 31.Rxb5 {[%clk 00:05:05][%emt
00:00:35]} 31...Ra1+ {[%clk 00:09:55][%emt 00:01:13]} 32.Kg2 {[%clk
00:05:31][%emt 00:00:04]} 32...Qd7 {[%clk 00:10:20][%emt 00:00:05]} 33.Bd5 
{[%clk 00:05:10][%emt 00:00:51]} 33...Qxb5 {[%clk 00:09:40][%emt 00:01:10]} 
34.Bxe6+ {[%clk 00:05:38][%emt 00:00:02]} 34...Kf8 {[%clk 00:06:57][%emt
00:03:11]} 35.Bd5 {[%clk 00:05:53][%emt 00:00:17]} 35...Qb1 {[%clk
00:06:17][%emt 00:01:10]} 36.Kh3 {[%clk 00:06:18][%emt 00:00:04]} 36...Qf1+ 
{[%clk 00:06:40][%emt 00:00:07]} 37.Kh4 {[%clk 00:06:45][%emt 00:00:03]} 
37...g5+ {[%clk 00:03:07][%emt 00:04:03]} 38.Kg4 {[%clk 00:07:01][%emt
00:00:14]} 38...Qd1 {[%clk 00:03:09][%emt 00:00:29]} 39.Bxb7 {[%clk
00:07:26][%emt 00:00:05]} 39...Ra4+ {[%clk 00:03:23][%emt 00:00:16]} 40.Be4 
{[%clk 00:07:44][%emt 00:00:11]} 40...Rxe4+ {[%emt 00:01:02]} 41.dxe4 {[%clk
00:08:09]} 41...h5+ {[%clk 00:03:23][%emt 00:00:03]} 42.Kh3 {[%clk
00:08:34][%emt 00:00:05]} 42...g4+ {[%clk 00:03:45][%emt 00:00:09]} 0-1

[Event "FIDE Grand Swiss 2023"]
[Site "Villa Marina, Douglas, Isle of Man"]
[Date "2023.11.03"]
[Round "9.30"]
[White "Huschenbeth, Niclas"]
[Black "Matlakov, Maxim"]
[Result "0-1"]
[WhiteElo "2605"]
[BlackElo "2674"]
[EventDate "2023.10.25"]
[ECO "C77"]
[PlyCount "94"]
[BlackClock "00:49:58"]
[BlackFideId "4168003"]
[TimeControl "40/100 + 20/50 + 15 + 30s/move"]
[WhiteClock "00:13:08"]
[WhiteFideId "24604747"]

1.e4 {[%clk 01:40:56][%emt 00:00:02]} 1...e5 {[%clk 01:40:38][%emt 00:00:23]} 
2.Nf3 {[%clk 01:41:19][%emt 00:00:07]} 2...Nc6 {[%clk 01:40:57][%emt 00:00:12]} 
3.Bb5 {[%clk 01:41:41][%emt 00:00:07]} 3...a6 {[%clk 01:41:04][%emt 00:00:23]} 
4.Ba4 {[%clk 01:42:04][%emt 00:00:07]} 4...Nf6 {[%clk 01:41:21][%emt 00:00:14]} 
5.d3 {[%clk 01:42:27][%emt 00:00:06]} 5...b5 {[%clk 01:32:46][%emt 00:09:05]} 
6.Bb3 {[%clk 01:42:02][%emt 00:00:55]} 6...Be7 {[%clk 01:33:09][%emt 00:00:08]} 
7.a4 {[%clk 01:42:26][%emt 00:00:06]} 7...Rb8 {[%clk 01:33:30][%emt 00:00:08]} 
8.axb5 {[%clk 01:42:38][%emt 00:00:18]} 8...axb5 {[%clk 01:33:53][%emt
00:00:08]} 9.Nc3 {[%clk 01:42:59][%emt 00:00:09]} 9...d6 {[%clk 01:31:23][%emt
00:03:00]} 10.Be3 {[%clk 01:43:23][%emt 00:00:05]} 10...O-O {[%clk
01:27:50][%emt 00:04:04]} 11.Nd5 {[%clk 01:43:49][%emt 00:00:04]} 11...h6 
{[%clk 01:23:26][%emt 00:04:54]} 12.c3 {[%clk 01:29:45][%emt 00:14:34]} 
12...Re8 {[%clk 01:21:20][%emt 00:02:36]} 13.O-O {[%clk 01:25:50][%emt
00:04:24]} 13...Bf8 {[%clk 01:20:48][%emt 00:01:03]} 14.h3 {[%clk 01:21:58][%emt
00:04:22]} 14...Be6 {[%clk 01:07:06][%emt 00:14:12]} 15.Nxf6+ {[%clk
00:51:42][%emt 00:30:46]} 15...Qxf6 {[%clk 01:04:34][%emt 00:03:02]} 16.Re1 
{[%clk 00:47:17][%emt 00:04:55]} 16...Ra8 {[%clk 00:57:38][%emt 00:07:27]} 
17.Rxa8 {[%clk 00:40:21][%emt 00:07:26]} 17...Rxa8 {[%clk 00:55:21][%emt
00:02:46]} 18.Bd5 {[%clk 00:40:43][%emt 00:00:07]} 18...Bxd5 {[%clk
00:42:04][%emt 00:13:47]} 19.exd5 {[%clk 00:41:07][%emt 00:00:06]} 19...Ne7 
{[%clk 00:42:23][%emt 00:00:12]} 20.Qb3 {[%clk 00:41:31][%emt 00:00:06]} 
20...Rb8 {[%clk 00:42:20][%emt 00:00:34]} 21.Ra1 {[%clk 00:29:36][%emt
00:12:25]} 21...Qf5 {[%clk 00:38:43][%emt 00:04:07]} 22.c4 {[%clk 00:30:01][%emt
00:00:04]} 22...Qc8 {[%clk 00:38:24][%emt 00:00:49]} 23.c5 {[%clk 00:23:16][%emt
00:07:16]} 23...dxc5 {[%clk 00:30:49][%emt 00:08:05]} 24.Bxc5 {[%clk
00:20:22][%emt 00:03:23]} 24...Ng6 {[%clk 00:29:37][%emt 00:01:42]} 25.Bxf8 
{[%clk 00:15:30][%emt 00:05:23]} 25...Qxf8 {[%clk 00:25:10][%emt 00:04:56]} 
26.Rc1 {[%clk 00:15:36][%emt 00:00:23]} 26...Qd8 {[%clk 00:24:20][%emt
00:01:21]} 27.Rc5 {[%clk 00:15:06][%emt 00:01:00]} 27...Nf4 {[%clk
00:18:15][%emt 00:06:36]} 28.Rxb5 {[%clk 00:13:34][%emt 00:02:03]} 28...Rxb5 
{[%clk 00:17:34][%emt 00:01:10]} 29.Qxb5 {[%clk 00:13:59][%emt 00:00:05]} 
29...f6 {[%clk 00:17:52][%emt 00:00:12]} 30.Qc4 {[%clk 00:05:23][%emt 00:09:05]} 
30...Qxd5 {[%clk 00:17:26][%emt 00:00:57]} 31.Qxd5+ {[%clk 00:03:59][%emt
00:01:54]} 31...Nxd5 {[%clk 00:17:50][%emt 00:00:05]} 32.g3 {[%clk
00:04:10][%emt 00:00:19]} 32...Nb4 {[%clk 00:16:15][%emt 00:02:06]} 33.Ne1 
{[%clk 00:04:11][%emt 00:00:28]} 33...Kf7 {[%clk 00:16:19][%emt 00:00:26]} 
34.Kf1 {[%clk 00:04:29][%emt 00:00:12]} 34...Ke6 {[%clk 00:16:16][%emt
00:00:34]} 35.Ke2 {[%clk 00:04:46][%emt 00:00:12]} 35...f5 {[%clk 00:15:37][%emt
00:01:10]} 36.h4 {[%clk 00:04:36][%emt 00:00:39]} 36...g5 {[%clk 00:15:17][%emt
00:00:50]} 37.hxg5 {[%clk 00:04:44][%emt 00:00:22]} 37...hxg5 {[%clk
00:15:43][%emt 00:00:04]} 38.Ng2 {[%clk 00:02:54][%emt 00:02:20]} 38...Nc2 
{[%clk 00:15:27][%emt 00:00:47]} 39.Ne3 {[%clk 00:01:38][%emt 00:01:47]} 
39...Nxe3 {[%clk 00:06:25][%emt 00:09:31]} 40.Kxe3 {[%clk 00:01:58][%emt
00:00:10]} 40...Kd5 {[%clk 00:06:26][%emt 00:00:29]} 41.Ke2 {[%clk
00:20:53][%emt 00:31:34]} 41...Kd4 {[%clk 00:51:28][%emt 00:05:29]} 42.Kd2 
{[%clk 00:12:46][%emt 00:08:37]} 42...g4 {[%clk 00:50:00][%emt 00:01:57]} 
43.Ke2 {[%clk 00:11:54][%emt 00:01:22]} 43...f4 {[%clk 00:49:29][%emt 00:01:02]} 
44.Kd2 {[%clk 00:12:18][%emt 00:00:05]} 44...fxg3 {[%clk 00:48:43][%emt
00:01:16]} 45.fxg3 {[%clk 00:12:43][%emt 00:00:04]} 45...e4 {[%clk
00:49:10][%emt 00:00:05]} 46.dxe4 {[%clk 00:13:09][%emt 00:00:04]} 46...Kxe4 
{[%clk 00:49:34] [%emt 00:00:06]} 47.Ke2 {[%clk 00:13:34] [%emt 00:00:05]} 
47...c6 {[%clk 00:49:58] [%emt 00:00:06]} 0-1

[Event "FIDE Grand Swiss 2023"]
[Site "Villa Marina, Douglas, Isle of Man"]
[Date "2023.11.03"]
[Round "9.31"]
[White "Bluebaum, Matthias"]
[Black "Tari, Aryan"]
[Result "1/2-1/2"]
[WhiteElo "2668"]
[BlackElo "2619"]
[EventDate "2023.10.25"]
[ECO "A48"]
[PlyCount "65"]
[BlackClock "00:23:55"]
[BlackFideId "1510045"]
[TimeControl "40/100 + 20/50 + 15 + 30s/move"]
[WhiteClock "00:26:20"]
[WhiteFideId "24651516"]

1.d4 {[%clk 01:40:57][%emt 00:00:02]} 1...Nf6 {[%clk 01:40:54][%emt 00:00:07]} 
2.Nf3 {[%clk 01:41:23][%emt 00:00:03]} 2...g6 {[%clk 01:40:54][%emt 00:00:31]} 
3.Nbd2 {[%clk 01:41:30][%emt 00:00:23]} 3...d5 {[%clk 01:41:14][%emt 00:00:10]} 
4.b3 {[%clk 01:41:02][%emt 00:00:57]} 4...Bg7 {[%clk 01:41:21][%emt 00:00:24]} 
5.Bb2 {[%clk 01:41:14][%emt 00:00:18]} 5...O-O {[%clk 01:41:20][%emt 00:00:31]} 
6.e3 {[%clk 01:41:40][%emt 00:00:04]} 6...b6 {[%clk 01:40:38][%emt 00:01:12]} 
7.c4 {[%clk 01:38:02][%emt 00:04:08]} 7...Bb7 {[%clk 01:37:36][%emt 00:03:32]} 
8.Rc1 {[%clk 01:36:23][%emt 00:02:08]} 8...Nbd7 {[%clk 01:29:56][%emt 00:08:10]} 
9.Be2 {[%clk 01:31:50][%emt 00:05:03]} 9...a5 {[%clk 01:23:16][%emt 00:07:11]} 
10.O-O {[%clk 01:26:06][%emt 00:06:14]} 10...c5 {[%clk 01:20:23][%emt 00:03:23]} 
11.dxc5 {[%clk 01:20:58][%emt 00:05:38]} 11...Nxc5 {[%clk 01:16:27][%emt
00:04:26]} 12.cxd5 {[%clk 01:20:35][%emt 00:00:53]} 12...Bxd5 {[%clk
01:13:48][%emt 00:03:09]} 13.Nc4 {[%clk 01:16:40][%emt 00:04:24]} 13...e6 
{[%clk 01:10:25][%emt 00:03:53]} 14.Bd4 {[%clk 01:12:47][%emt 00:04:24]} 
14...Ncd7 {[%clk 00:57:42][%emt 00:13:14]} 15.Nfe5 {[%clk 01:05:40][%emt
00:07:36]} 15...Nxe5 {[%clk 00:55:25][%emt 00:02:47]} 16.Nxe5 {[%clk
01:05:47][%emt 00:00:23]} 16...Qd6 {[%clk 00:42:33][%emt 00:13:23]} 17.Nc4 
{[%clk 00:59:44][%emt 00:06:32]} 17...Bxc4 {[%clk 00:42:57][%emt 00:00:06]} 
18.Rxc4 {[%clk 01:00:04][%emt 00:00:10]} 18...Rfd8 {[%clk 00:40:13][%emt
00:03:15]} 19.Qa1 {[%clk 00:50:12][%emt 00:10:21]} 19...Ne8 {[%clk
00:40:09][%emt 00:00:33]} 20.Bxg7 {[%clk 00:50:02][%emt 00:00:41]} 20...Nxg7 
{[%clk 00:40:33][%emt 00:00:06]} 21.Bf3 {[%clk 00:50:30][%emt 00:00:02]} 
21...Rac8 {[%clk 00:37:23][%emt 00:03:40]} 22.Rd1 {[%clk 00:50:03][%emt
00:00:57]} 22...Qe7 {[%clk 00:35:10][%emt 00:02:43]} 23.Qd4 {[%clk
00:44:32][%emt 00:06:01]} 23...Rb8 {[%clk 00:32:13][%emt 00:03:28]} 24.Qe5 
{[%clk 00:40:53][%emt 00:04:09]} 24...Rxd1+ {[%clk 00:30:31][%emt 00:02:12]} 
25.Bxd1 {[%clk 00:41:21][%emt 00:00:01]} 25...Rd8 {[%clk 00:30:56][%emt
00:00:05]} 26.Bf3 {[%clk 00:38:17][%emt 00:03:33]} 26...Nf5 {[%clk
00:29:51][%emt 00:01:36]} 27.g3 {[%clk 00:35:40][%emt 00:03:07]} 27...h5 {[%clk
00:29:25][%emt 00:00:56]} 28.e4 {[%clk 00:28:05][%emt 00:08:05]} 28...b5 {[%clk
00:27:26][%emt 00:02:29]} 29.Rc7 {[%clk 00:25:56][%emt 00:02:39]} 29...Nd4 
{[%clk 00:26:44][%emt 00:01:12]} 30.Kg2 {[%clk 00:26:21] [%emt 00:00:05]} 
30...Rd7 {[%clk 00:23:01] [%emt 00:04:13]} 31.Rc8+ {[%clk 00:26:41] [%emt
00:00:10]} 31...Rd8 {[%clk 00:23:30][%emt 00:00:01]} 32.Rc7 {[%clk
00:26:21][%emt 00:00:05]} 32...Rd7 {[%clk 00:23:56][%emt 00:00:04]} 33.Rc8+ 
{[%clk 00:26:41][%emt 00:00:10]} 1/2-1/2

[Event "FIDE Grand Swiss 2023"]
[Site "Villa Marina, Douglas, Isle of Man"]
[Date "2023.11.03"]
[Round "9.32"]
[White "Suleymanli, Aydin"]
[Black "Volokitin, Andrei"]
[Result "1/2-1/2"]
[WhiteElo "2588"]
[BlackElo "2664"]
[EventDate "2023.10.25"]
[ECO "B51"]
[PlyCount "60"]
[BlackClock "00:40:26"]
[BlackFideId "14107090"]
[TimeControl "40/100 + 20/50 + 15 + 30s/move"]
[WhiteClock "01:16:45"]
[WhiteFideId "13413937"]

1.e4 {[%clk 01:40:54][%emt 00:00:05]} 1...c5 {[%clk 01:40:55][%emt 00:00:06]} 
2.Nf3 {[%clk 01:41:20][%emt 00:00:03]} 2...d6 {[%clk 01:41:21][%emt 00:00:04]} 
3.Bb5+ {[%clk 01:41:47][%emt 00:00:04]} 3...Nd7 {[%clk 01:41:47][%emt 00:00:03]} 
4.O-O {[%clk 01:42:11][%emt 00:00:06]} 4...a6 {[%clk 01:42:14][%emt 00:00:03]} 
5.Bd3 {[%clk 01:42:27][%emt 00:00:14]} 5...Ngf6 {[%clk 01:42:37][%emt 00:00:07]} 
6.Re1 {[%clk 01:42:52][%emt 00:00:05]} 6...e6 {[%clk 01:42:59][%emt 00:00:08]} 
7.Bf1 {[%clk 01:42:02][%emt 00:01:20]} 7...b5 {[%clk 01:43:14][%emt 00:00:14]} 
8.a4 {[%clk 01:40:35][%emt 00:01:58]} 8...Bb7 {[%clk 01:43:37][%emt 00:00:07]} 
9.d4 {[%clk 01:40:54][%emt 00:00:12]} 9...Bxe4 {[%clk 01:44:00][%emt 00:00:07]} 
10.dxc5 {[%clk 01:40:41][%emt 00:00:42]} 10...dxc5 {[%clk 01:44:26][%emt
00:00:04]} 11.Nc3 {[%clk 01:39:48][%emt 00:01:24]} 11...Bc6 {[%clk
01:44:46][%emt 00:00:09]} 12.axb5 {[%clk 01:39:54][%emt 00:00:25]} 12...axb5 
{[%clk 01:45:12][%emt 00:00:04]} 13.Rxa8 {[%clk 01:39:33][%emt 00:00:51]} 
13...Qxa8 {[%clk 01:45:40][%emt 00:00:02]} 14.Bxb5 {[%clk 01:39:31][%emt
00:00:31]} 14...Be7 {[%clk 01:38:16][%emt 00:07:54]} 15.Bxc6 {[%clk
01:38:15][%emt 00:01:47]} 15...Qxc6 {[%clk 01:38:37][%emt 00:00:08]} 16.Bg5 
{[%clk 01:33:38][%emt 00:05:06]} 16...h6 {[%clk 01:28:30][%emt 00:10:39]} 
17.Bh4 {[%clk 01:31:32][%emt 00:02:35]} 17...O-O {[%clk 01:28:03][%emt
00:00:57]} 18.Nd2 {[%clk 01:28:42][%emt 00:03:19]} 18...c4 {[%clk 01:16:44][%emt
00:11:50]} 19.Qe2 {[%clk 01:26:47][%emt 00:02:25]} 19...Bb4 {[%clk
01:14:13][%emt 00:03:02]} 20.Nxc4 {[%clk 01:19:24][%emt 00:07:52]} 20...Rc8 
{[%clk 01:03:56][%emt 00:10:48]} 21.Ne3 {[%clk 01:14:33][%emt 00:05:20]} 
21...Bxc3 {[%clk 00:38:53][%emt 00:25:33]} 22.bxc3 {[%clk 01:14:59][%emt
00:00:04]} 22...Qxc3 {[%clk 00:39:21][%emt 00:00:02]} 23.Bxf6 {[%clk
01:14:23][%emt 00:01:06]} 23...Nxf6 {[%clk 00:39:46][%emt 00:00:06]} 24.Rd1 
{[%clk 01:14:43][%emt 00:00:09]} 24...Nd5 {[%clk 00:37:51][%emt 00:02:25]} 
25.Nxd5 {[%clk 01:15:05][%emt 00:00:09]} 25...exd5 {[%clk 00:38:19][%emt
00:00:01]} 26.h3 {[%clk 01:15:16][%emt 00:00:19]} 26...Qxc2 {[%clk 00:38:41]
[%emt 00:00:08]} 27.Qxc2 {[%clk 01:15:42] [%emt 00:00:05]} 27...Rxc2 {[%clk
00:39:07] [%emt 00:00:04]} 28.Rxd5 {[%clk 01:16:09] [%emt 00:00:03]} 28...g5 
{[%emt 00:00:12]} 29.Rd8+ {[%clk 01:16:32]} 29...Kg7 {[%clk 00:40:00] [%emt
00:00:02]} 30.Rd7 {[%clk 01:16:53] [%emt 00:00:08]} 30...Kg6 {[%clk 00:40:26]
[%emt 00:00:04]} 1/2-1/2